{"text_format":"1","workbook":"xlsx","n_sheets":4,"sheets":["Vendor Instructions","Cost Change Form","Supporting Information","Lists"],"not_rendered":{"charts":0,"images":5,"macros":1,"external_links":0,"defined_names":6,"comments":0,"pivot_tables":0},"unopened":[],"bounds":{"document_bytes":16777216,"sheet_cells":100000,"rows_first":2000,"rows_last":500,"rows_between":2000,"halvings":0,"cell_chars":16384,"cell_head_chars":4096},"cells_cut":0,"cells_raw":0,"read":"whole","date_system":"1900"}

{"sheet":"Vendor Instructions","index":0,"n_rows":1,"n_cols":14,"rows_kept":1,"cut":false,"hidden":false,"merged":[]}
[null,null,null,null,null,null,null,null,null,null,null,null,null,{"$f":"'Cost Change Form'!M2","v":"Ver.2026.03.23"}]

{"sheet":"Cost Change Form","index":1,"n_rows":67,"n_cols":25,"rows_kept":67,"cut":false,"hidden":false,"merged":[[4,9,4,10],[3,9,3,10],[2,9,2,10],[4,13,4,15],[1,7,1,11],[1,12,1,15],[1,1,2,5],[4,4,4,5],[4,7,4,8],[3,7,3,8],[2,7,2,8],[7,4,7,5],[8,4,8,5],[12,6,12,15],[11,6,11,15],[6,21,6,23],[6,6,10,7],[6,8,10,14],[6,17,6,19],[10,20,10,21],[10,22,10,23],[13,6,13,10],[13,11,13,15],[12,17,12,23],[12,1,12,2],[12,3,12,4],[2,17,2,21],[13,17,13,20],[13,21,13,23],[4,17,4,18],[4,21,4,23],[5,17,5,21]]}
[]
[null,"WEGMANS COST CHANGE FORM",null,null,null,null,null,"For Wegmans Office Use only",null,null,null,null,"Ver.2026.03.23",null,null,null,null,"Bill Back Type:  W - All Warehouse Purchase Orders"]
[null,null,null,null,null,null,null,"Merchant ",null,null,null,"DSD ",null,null,"Freight %",null,null,"Receivable Deduction Code"]
[null,null,null,null,null,null,null,"Admin ",null,null,null,"Whse ",null,null,null,null,null," "]
[null,"Dept ",null,"Today's Date",null,null,null,"Date ",null,null,null,"QR ",null,null,null,null,null,"Deduct Weekly",null," ",null,"Buyer Approval: "]
[null,"Vendor "]
[null,"Vendor # ",null,null,null,null,"Comments:",null,null,null,null,null,null,null,null,null,null,"Bill Back Start Date: ",null,null,null,"Bill Back End Date: "]
[null,"BBR# ",null," Cost Start Date"]
[null,"Rep Name ",null,"Cost End Date"]
[null,"Rep Phone "]
[null,"Brokerage ",null,null,null,null,null,null,null,null,null,null,null,null,null,null,null,null,null,null,"Retail Start Date "]
[]
[null,null,null,null,null,null,"Case Information",null,null,null,null,null,null,null,null,null,null,"Unit Information"]
[null,null,null,null,null,null,"Current",null,null,null,null,"New",null,null,null,null,null,"Cost",null,null,null,"Retail"]
[null,"Wegmans\nItem #","Item Description","Unit UPC \nx-xxxxx-xxxxx-x","Unit\nSize","Case Pack","List","Off-Inv","WHSE\nBill Back","Freight","Cost","List","Off-Inv","WHSE\nBill Back","Freight","Cost",null,"Current","New","Change\n$","Change\n%","MAP/Sugg\nRetail","Current","New","Whse\nBill Back #"]
[null,null,null,null,null,null,null,null,null,{"$f":"IF($G16=\"\",\"\",(IF($P$3<>\"\",(($G16-$H16)*$P$3),(IF($G16=\"\",\"\",0)))))","v":""},{"$f":"IF($G16=\"\",\"\",(($G16-$H16-$I16)+$J16))","v":""},null,null,null,{"$f":"IF($L16=\"\",\"\",(IF($P$3<>\"\",(($L16-$M16)*$P$3),(IF($L16=\"\",\"\",0)))))","v":""},{"$f":"IF($L16=\"\",\"\",(($L16-$M16-$N16)+$O16))","v":""},null,{"$f":"IF(ISERROR($K16/$F16),\"\",($K16/$F16))","v":""},{"$f":"IF(ISERROR($P16/$F16),\"\",($P16/$F16))","v":""},{"$f":"IF(ISERROR(S16-R16),\"\",(S16-R16))","v":""},{"$f":"IF(ISERROR($T16/$R16),\"\",($T16/$R16))","v":""}]
[null,null,null,null,null,null,null,null,null,"",{"$f":"IF($G17=\"\",\"\",(($G17-$H17-$I17)+$J17))","v":""},null,null,null,"",{"$f":"IF($L17=\"\",\"\",(($L17-$M17-$N17)+$O17))","v":""},null,"","",{"$f":"IF(ISERROR(S17-R17),\"\",(S17-R17))","v":""},{"$f":"IF(ISERROR($T17/$R17),\"\",($T17/$R17))","v":""}]
[null,null,null,null,null,null,null,null,null,"","",null,null,null,"","",null,"","","",""]
[null,null,null,null,null,null,null,null,null,"","",null,null,null,"","",null,"","","",""]
[null,null,null,null,null,null,null,null,null,"","",null,null,null,"","",null,"","","",""]
[null,null,null,null,null,null,null,null,null,"","",null,null,null,"","",null,"","","",""]
[null,null,null,null,null,null,null,null,null,"","",null,null,null,"","",null,"","","",""]
[null,null,null,null,null,null,null,null,null,"","",null,null,null,"","",null,"","","",""]
[null,null,null,null,null,null,null,null,null,"","",null,null,null,"","",null,"","","",""]
[null,null,null,null,null,null,null,null,null,"","",null,null,null,"","",null,"","","",""]
[null,null,null,null,null,null,null,null,null,"","",null,null,null,"","",null,"","","",""]
[null,null,null,null,null,null,null,null,null,"","",null,null,null,"","",null,"","","",""]
[null,null,null,null,null,null,null,null,null,"","",null,null,null,"","",null,"","","",""]
[null,null,null,null,null,null,null,null,null,"","",null,null,null,"","",null,"","","",""]
[null,null,null,null,null,null,null,null,null,"","",null,null,null,"","",null,"","","",""]
[null,null,null,null,null,null,null,null,null,"","",null,null,null,"","",null,"","","",""]
[null,null,null,null,null,null,null,null,null,"","",null,null,null,"","",null,"","","",""]
[null,null,null,null,null,null,null,null,null,"","",null,null,null,"","",null,"","","",""]
[null,null,null,null,null,null,null,null,null,"","",null,null,null,"","",null,"","","",""]
[null,null,null,null,null,null,null,null,null,"","",null,null,null,"","",null,"","","",""]
[null,null,null,null,null,null,null,null,null,"","",null,null,null,"","",null,"","","",""]
[null,null,null,null,null,null,null,null,null,"","",null,null,null,"","",null,"","","",""]
[null,null,null,null,null,null,null,null,null,"","",null,null,null,"","",null,"","","",""]
[null,null,null,null,null,null,null,null,null,"","",null,null,null,"","",null,"","","",""]
[null,null,null,null,null,null,null,null,null,"","",null,null,null,"","",null,"","","",""]
[null,null,null,null,null,null,null,null,null,"","",null,null,null,"","",null,"","","",""]
[null,null,null,null,null,null,null,null,null,"","",null,null,null,"","",null,"","","",""]
[null,null,null,null,null,null,null,null,null,"","",null,null,null,"","",null,"","","",""]
[null,null,null,null,null,null,null,null,null,"","",null,null,null,"","",null,"","","",""]
[null,null,null,null,null,null,null,null,null,"","",null,null,null,"","",null,"","","",""]
[null,null,null,null,null,null,null,null,null,"","",null,null,null,"","",null,"","","",""]
[null,null,null,null,null,null,null,null,null,"","",null,null,null,"","",null,"","","",""]
[null,null,null,null,null,null,null,null,null,"","",null,null,null,"","",null,"","","",""]
[null,null,null,null,null,null,null,null,null,"","",null,null,null,"","",null,"","","",""]
[null,null,null,null,null,null,null,null,null,"","",null,null,null,"","",null,"","","",""]
[null,null,null,null,null,null,null,null,null,"","",null,null,null,"","",null,"","","",""]
[null,null,null,null,null,null,null,null,null,"","",null,null,null,"","",null,"","","",""]
[null,null,null,null,null,null,null,null,null,"","",null,null,null,"","",null,"","","",""]
[null,null,null,null,null,null,null,null,null,"","",null,null,null,"","",null,"","","",""]
[null,null,null,null,null,null,null,null,null,"","",null,null,null,"","",null,"","","",""]
[null,null,null,null,null,null,null,null,null,"","",null,null,null,"","",null,"","","",""]
[null,null,null,null,null,null,null,null,null,"","",null,null,null,"","",null,"","","",""]
[null,null,null,null,null,null,null,null,null,"","",null,null,null,"","",null,"","","",""]
[null,null,null,null,null,null,null,null,null,"","",null,null,null,"","",null,"","","",""]
[null,null,null,null,null,null,null,null,null,"","",null,null,null,"","",null,"","","",""]
[null,null,null,null,null,null,null,null,null,"","",null,null,null,"","",null,"","","",""]
[null,null,null,null,null,null,null,null,null,"","",null,null,null,"","",null,"","","",""]
[null,null,null,null,null,null,null,null,null,"","",null,null,null,"","",null,"","","",""]
[null,null,null,null,null,null,null,null,null,"","",null,null,null,"","",null,"","","",""]
[null,null,null,null,null,null,null,null,null,"","",null,null,null,"","",null,"","","",""]
[null,null,null,null,null,null,null,null,null,"","",null,null,null,"","",null,"","","",""]
[null,null,null,null,null,null,null,null,null,"","",null,null,null,"","",null,"","","",""]

{"sheet":"Supporting Information","index":2,"n_rows":0,"n_cols":0,"rows_kept":0,"cut":false,"hidden":false,"merged":[]}

{"sheet":"Lists","index":3,"n_rows":24,"n_cols":1,"rows_kept":24,"cut":false,"hidden":true,"merged":[]}
[]
["Department"]
[" "]
["Bulk"]
["Dairy"]
["Frozen"]
["Grocery"]
["Health & Wellness"]
["Home & Entertaining"]
[]
["Receivable Deduction Code"]
[" "]
["D - Deduct off invoice immediately at end of deal"]
["F - Pay from vendors Future Fund account at the end of deal"]
["E - At end of deal, deduct off invoice in 12 days"]
["M - Multiple Monthly Billing  (JFM   AMJ   JAS   OND)"]
["R - Bill generated after each PO received, deducted immediately"]
["N - Do not deduct, wait for payment"]
["I - Internal Promotions account"]
[]
["Deduct_Weekly"]
[" "]
["YES"]
["NO"]